Workbook

Sheet 福泉市2023年公开招聘警务辅助人员总成绩排名及拟进入体检人员
A1: 福泉市公安局2023年公开招聘警务辅助人员总成绩排名及拟进入体检人员名单
A2: 序号 | B2: 姓名 | C2: 笔试准考证号 | D2: 性别 | E2: 考试职位名称 | F2: 笔试成绩 | G2: 面试成绩 | H2: 总成绩 | I2: 名次 | J2: 体能测试是否合格 | K2: 是否进入体检 | L2: 备注
A3: 1 | B3: 何华钊 | C3: 202311110106 | D3: 男 | E3: 巡逻特警大队勤务辅警01 | F3: 81.50 | G3: 82.80 | H3: =F3*0.5+G3*0.5 -> 82.15 | I3: 1 | J3: 合格 | K3: 是
A4: 2 | B4: 余丹匀 | C4: 202311110101 | D4: 男 | E4: 巡逻特警大队勤务辅警01 | F4: 85.45 | G4: 74.60 | H4: 80.03 | I4: 2 | J4: 合格 | K4: 是
A5: 3 | B5: 杨国海 | C5: 202311110102 | D5: 男 | E5: 巡逻特警大队勤务辅警01 | F5: 82.39 | G5: 77.60 | H5: 80.00 | I5: 3 | J5: 合格 | K5: 是
A6: 4 | B6: 杨跃坤 | C6: 202311110110 | D6: 男 | E6: 巡逻特警大队勤务辅警02 | F6: 74.51 | G6: 78.00 | H6: =F6*0.5+G6*0.5 -> 76.26 | I6: 1 | J6: 合格 | K6: 是
A7: 5 | B7: 姜世臣 | C7: 202311110104 | D7: 男 | E7: 巡逻特警大队勤务辅警02 | F7: 81.52 | G7: 69.00 | H7: =F7*0.5+G7*0.5 -> 75.26 | I7: 2 | J7: 合格 | K7: 是
A8: 6 | B8: 黄龙鑫 | C8: 202311110107 | D8: 男 | E8: 巡逻特警大队勤务辅警02 | F8: 71.51 | G8: 67.60 | H8: =F8*0.5+G8*0.5 -> 69.56 | I8: 3 | J8: 合格 | K8: 是
A9: 7 | B9: 徐希望 | C9: 202311110123 | D9: 男 | E9: 巡逻特警大队勤务辅警02 | F9: 68.80 | G9: 69.40 | H9: =F9*0.5+G9*0.5 -> 69.10 | I9: 4 | J9: 合格 | K9: 是
A10: 8 | B10: 王昌龙 | C10: 202311110143 | D10: 男 | E10: 巡逻特警大队勤务辅警02 | F10: 63.32 | G10: 71.80 | H10: =F10*0.5+G10*0.5 -> 67.56 | I10: 5 | J10: 合格 | K10: 是
A11: 9 | B11: 先诗毅 | C11: 202311110108 | D11: 男 | E11: 巡逻特警大队勤务辅警02 | F11: 80.61 | G11: 缺考 | H11: —— | I11: —— | J11: 缺考 | K11: 否
A12: 10 | B12: 李星陆 | C12: 202311110115 | D12: 男 | E12: 巡逻特警大队勤务辅警03 | F12: 72.24 | G12: 79.50 | H12: =F12*0.5+G12*0.5 -> 75.87 | I12: 1 | J12: 合格 | K12: 是
A13: 11 | B13: 罗毅 | C13: 202311110103 | D13: 男 | E13: 巡逻特警大队勤务辅警03 | F13: 76.35 | G13: 74.30 | H13: =F13*0.5+G13*0.5 -> 75.33 | I13: 2 | J13: 合格 | K13: 是
A14: 12 | B14: 鲁杰 | C14: 202311110113 | D14: 男 | E14: 巡逻特警大队勤务辅警03 | F14: 74.83 | G14: 75.30 | H14: 75.07 | I14: 3 | J14: 合格 | K14: 是
A15: 13 | B15: 徐彬 | C15: 202311110114 | D15: 男 | E15: 巡逻特警大队勤务辅警03 | F15: 72.87 | G15: 72.60 | H15: 72.74 | I15: 4 | J15: 合格 | K15: 是
A16: 14 | B16: 熊光清 | C16: 202311110116 | D16: 男 | E16: 巡逻特警大队勤务辅警03 | F16: 69.10 | G16: 69.70 | H16: 69.40 | I16: 5 | J16: 合格 | K16: 是
A17: 15 | B17: 王松 | C17: 202311110121 | D17: 男 | E17: 巡逻特警大队勤务辅警04 | F17: 76.82 | G17: 83.00 | H17: 79.91 | I17: 1 | J17: 合格 | K17: 是
A18: 16 | B18: 于波 | C18: 202311110122 | D18: 男 | E18: 巡逻特警大队勤务辅警04 | F18: 85.45 | G18: 73.80 | H18: 79.63 | I18: 2 | J18: 合格 | K18: 是
A19: 17 | B19: 朱成龙 | C19: 202311110118 | D19: 男 | E19: 巡逻特警大队勤务辅警04 | F19: 77.69 | G19: 74.10 | H19: 75.90 | I19: 3 | J19: 合格 | K19: 是
A20: 18 | B20: 陈涛 | C20: 202311110120 | D20: 男 | E20: 巡逻特警大队勤务辅警04 | F20: 72.26 | G20: 79.20 | H20: 75.73 | I20: 4 | J20: 合格 | K20: 是
A21: 19 | B21: 梁福周 | C21: 202311110119 | D21: 男 | E21: 巡逻特警大队勤务辅警04 | F21: 75.44 | G21: 70.00 | H21: 72.72 | I21: 5 | J21: 合格 | K21: 是
A22: 20 | B22: 杨坤 | C22: 202311110117 | D22: 男 | E22: 巡逻特警大队勤务辅警04 | F22: 65.29 | G22: 72.90 | H22: 69.10 | I22: 6 | J22: 缺考 | K22: 否
A23: 21 | B23: 石堃 | C23: 202311110128 | D23: 男 | E23: 巡逻特警大队勤务辅警05 | F23: 74.97 | G23: 72.00 | H23: =F23*0.5+G23*0.5 -> 73.49 | I23: 1 | J23: 合格 | K23: 是
A24: 22 | B24: 潘南宇 | C24: 202311110144 | D24: 男 | E24: 巡逻特警大队勤务辅警05 | F24: 68.19 | G24: 75.00 | H24: =F24*0.5+G24*0.5 -> 71.60 | I24: 2 | J24: 合格 | K24: 是
A25: 23 | B25: 曹孝庄 | C25: 202311110162 | D25: 男 | E25: 巡逻特警大队勤务辅警05 | F25: 70.27 | G25: 72.90 | H25: =F25*0.5+G25*0.5 -> 71.59 | I25: 3 | J25: 合格 | K25: 是
A26: 24 | B26: 刘一龙 | C26: 202311110133 | D26: 男 | E26: 巡逻特警大队勤务辅警05 | F26: 67.88 | G26: 72.60 | H26: =F26*0.5+G26*0.5 -> 70.24 | I26: 4 | J26: 合格 | K26: 是
A27: 25 | B27: 熊大楼 | C27: 202311110125 | D27: 男 | E27: 巡逻特警大队勤务辅警05 | F27: 61.62 | G27: 78.60 | H27: =F27*0.5+G27*0.5 -> 70.11 | I27: 5 | J27: 合格 | K27: 是
A28: 26 | B28: 罗兴友 | C28: 202311110130 | D28: 男 | E28: 金山派出所勤务辅警06 | F28: 81.52 | G28: 79.20 | H28: 80.36 | I28: 1 | J28: 合格 | K28: 是
A29: 27 | B29: 孟新凯 | C29: 202311110131 | D29: 男 | E29: 金山派出所勤务辅警06 | F29: 77.08 | G29: 73.40 | H29: 75.24 | I29: 2 | J29: 合格 | K29: 是
A30: 28 | B30: 罗越飞 | C30: 202311110127 | D30: 男 | E30: 金山派出所勤务辅警06 | F30: 71.67 | G30: 78.60 | H30: 75.14 | I30: 3 | J30: 合格 | K30: 是
A31: 29 | B31: 陶焯 | C31: 202311110135 | D31: 男 | E31: 金山派出所勤务辅警06 | F31: 75.89 | G31: 73.60 | H31: 74.75 | I31: 4 | J31: 合格 | K31: 是
A32: 30 | B32: 梁玭港 | C32: 202311110134 | D32: 男 | E32: 金山派出所勤务辅警06 | F32: 72.12 | G32: 75.60 | H32: 73.86 | I32: 5 | J32: 合格 | K32: 是
A33: 31 | B33: 柳磊 | C33: 202311110145 | D33: 男 | E33: 金山派出所勤务辅警07 | F33: 90.62 | G33: 82.60 | H33: 86.61 | I33: 1 | J33: 合格 | K33: 是
A34: 32 | B34: 谢正勇 | C34: 202311110139 | D34: 男 | E34: 金山派出所勤务辅警07 | F34: 80.91 | G34: 78.60 | H34: 79.76 | I34: 2 | J34: 合格 | K34: 是
A35: 33 | B35: 王绍吉 | C35: 202311110142 | D35: 男 | E35: 金山派出所勤务辅警07 | F35: 73.78 | G35: 78.80 | H35: 76.29 | I35: 3 | J35: 合格 | K35: 是
A36: 34 | B36: 刘洋 | C36: 202311110137 | D36: 男 | E36: 金山派出所勤务辅警07 | F36: 72.42 | G36: 78.00 | H36: 75.21 | I36: 4 | J36: 合格 | K36: 是
A37: 35 | B37: 冯政洲 | C37: 202311110138 | D37: 男 | E37: 金山派出所勤务辅警07 | F37: 71.51 | G37: 75.80 | H37: 73.66 | I37: 5 | J37: 合格 | K37: 是
A38: 36 | B38: 朱亚龙 | C38: 202311110149 | D38: 男 | E38: 金山派出所勤务辅警08 | F38: 83.18 | G38: 79.20 | H38: 81.19 | I38: 1 | J38: 合格 | K38: 是
A39: 37 | B39: 罗荣坤 | C39: 202311110147 | D39: 男 | E39: 金山派出所勤务辅警08 | F39: 84.68 | G39: 74.60 | H39: 79.64 | I39: 2 | J39: 合格 | K39: 是
A40: 38 | B40: 黎小萌 | C40: 202311110154 | D40: 男 | E40: 金山派出所勤务辅警08 | F40: 74.67 | G40: 77.20 | H40: 75.94 | I40: 3 | J40: 合格 | K40: 是
A41: 39 | B41: 徐潜龙 | C41: 202311110151 | D41: 男 | E41: 金山派出所勤务辅警08 | F41: 74.73 | G41: 75.00 | H41: 74.87 | I41: 4 | J41: 合格 | K41: 是
A42: 40 | B42: 李儒杰 | C42: 202311110153 | D42: 男 | E42: 金山派出所勤务辅警08 | F42: 73.03 | G42: 68.20 | H42: 70.62 | I42: 5 | J42: 合格 | K42: 是
A43: 41 | B43: 张皞 | C43: 202311110148 | D43: 男 | E43: 金山派出所勤务辅警08 | F43: 69.22 | G43: 缺考 | H43: —— | I43: —— | J43: 缺考 | K43: 否
A44: 42 | B44: 冯承 | C44: 202311110150 | D44: 男 | E44: 金山派出所勤务辅警08 | F44: 81.64 | G44: 缺考 | H44: —— | I44: —— | J44: 缺考 | K44: 否
A45: 43 | B45: 袁浩 | C45: 202311110152 | D45: 男 | E45: 金山派出所勤务辅警08 | F45: 64.40 | G45: 缺考 | H45: —— | I45: —— | J45: 缺考 | K45: 否
A46: 44 | B46: 胡杰 | C46: 202311110161 | D46: 男 | E46: 交警大队勤务辅警09 | F46: 82.11 | G46: 83.00 | H46: =F46*0.5+G46*0.5 -> 82.56 | I46: 1 | J46: 合格 | K46: 是
A47: 45 | B47: 刘辰睿 | C47: 202311110159 | D47: 男 | E47: 交警大队勤务辅警09 | F47: 82.27 | G47: 75.50 | H47: 78.89 | I47: 2 | J47: 合格 | K47: 是
A48: 46 | B48: 李涛 | C48: 202311110164 | D48: 男 | E48: 交警大队勤务辅警09 | F48: 75.30 | G48: 81.70 | H48: 78.50 | I48: 3 | J48: 合格 | K48: 是
A49: 47 | B49: 罗剑阳 | C49: 202311110157 | D49: 男 | E49: 交警大队勤务辅警09 | F49: 82.41 | G49: 71.00 | H49: 76.71 | I49: 4 | J49: 合格 | K49: 是
A50: 48 | B50: 余潇 | C50: 202311110155 | D50: 男 | E50: 交警大队勤务辅警09 | F50: 73.17 | G50: 71.20 | H50: 72.19 | I50: 5 | J50: 合格 | K50: 是
A51: 49 | B51: 王泓森 | C51: 202311110156 | D51: 男 | E51: 交警大队勤务辅警09 | F51: 79.86 | G51: 缺考 | H51: —— | I51: —— | J51: 缺考 | K51: 否
A52: 50 | B52: 陈秋钱 | C52: 202311110163 | D52: 男 | E52: 交警大队勤务辅警09 | F52: 78.34 | G52: 缺考 | H52: —— | I52: —— | J52: 缺考 | K52: 否
A53: 51 | B53: 杨俊 | C53: 202311110166 | D53: 男 | E53: 交警大队勤务辅警10 | F53: 76.05 | G53: 80.30 | H53: =F53*0.5+G53*0.5 -> 78.18 | I53: 1 | J53: 合格 | K53: 是
A54: 52 | B54: 杨成益 | C54: 202311110169 | D54: 男 | E54: 交警大队勤务辅警10 | F54: 74.69 | G54: 78.80 | H54: 76.75 | I54: 2 | J54: 合格 | K54: 是
A55: 53 | B55: 潘银军 | C55: 202311110165 | D55: 男 | E55: 交警大队勤务辅警10 | F55: 71.98 | G55: 73.70 | H55: 72.84 | I55: 3 | J55: 合格 | K55: 是
A56: 54 | B56: 谭永安 | C56: 202311110168 | D56: 男 | E56: 交警大队勤务辅警10 | F56: 62.39 | G56: 71.00 | H56: 66.70 | I56: 4 | J56: 合格 | K56: 是
A57: 55 | B57: 袁浩镔 | C57: 202311110160 | D57: 男 | E57: 交警大队勤务辅警10 | F57: 68.61 | G57: 73.20 | H57: =F57*0.5+G57*0.5 -> 70.91 | I57: 5 | J57: 合格 | K57: 是
A58: 56 | B58: 瞿绍东 | C58: 202311110105 | D58: 男 | E58: 马场坪派出所勤务辅警11 | F58: 86.97 | G58: 66.00 | H58: =F58*0.5+G58*0.5 -> 76.49 | I58: 1 | J58: 合格 | K58: 是
A59: 57 | B59: 陆永法 | C59: 202311110172 | D59: 男 | E59: 马场坪派出所勤务辅警11 | F59: 76.94 | G59: 74.80 | H59: 75.87 | I59: 2 | J59: 合格 | K59: 是
A60: 58 | B60: 付明杰 | C60: 202311110170 | D60: 男 | E60: 马场坪派出所勤务辅警11 | F60: 76.37 | G60: 69.00 | H60: 72.69 | I60: 3 | J60: 合格 | K60: 是
A61: 59 | B61: 涂朝锌 | C61: 202311110175 | D61: 男 | E61: 马场坪派出所勤务辅警11 | F61: 74.53 | G61: 68.00 | H61: 71.27 | I61: 4 | J61: 合格 | K61: 是
A62: 60 | B62: 杨通健 | C62: 202311110181 | D62: 男 | E62: 马场坪派出所勤务辅警12 | F62: 72.56 | G62: 75.80 | H62: =F62*0.5+G62*0.5 -> 74.18 | I62: 1 | J62: 合格 | K62: 是
A63: 61 | B63: 冉松林 | C63: 202311110141 | D63: 男 | E63: 马场坪派出所勤务辅警12 | F63: 70.76 | G63: 74.40 | H63: =F63*0.5+G63*0.5 -> 72.58 | I63: 2 | J63: 合格 | K63: 是
A64: 62 | B64: 冯浩烜 | C64: 202311110198 | D64: 男 | E64: 马场坪派出所勤务辅警12 | F64: 67.56 | G64: 77.40 | H64: =F64*0.5+G64*0.5 -> 72.48 | I64: 3 | J64: 合格 | K64: 是
A65: 63 | B65: 李坤 | C65: 202311110158 | D65: 男 | E65: 马场坪派出所勤务辅警12 | F65: 73.03 | G65: 70.20 | H65: =F65*0.5+G65*0.5 -> 71.62 | I65: 4 | J65: 合格 | K65: 是
A66: 64 | B66: 熊绍贵 | C66: 202311110179 | D66: 男 | E66: 马场坪派出所勤务辅警13 | F66: 81.66 | G66: 75.80 | H66: 78.73 | I66: 1 | J66: 合格 | K66: 是
A67: 65 | B67: 罗举飞 | C67: 202311110180 | D67: 男 | E67: 马场坪派出所勤务辅警13 | F67: 76.98 | G67: 76.20 | H67: 76.59 | I67: 2 | J67: 合格 | K67: 是
A68: 66 | B68: 罗政豪 | C68: 202311110178 | D68: 男 | E68: 马场坪派出所勤务辅警13 | F68: 77.45 | G68: 74.80 | H68: 76.13 | I68: 3 | J68: 合格 | K68: 是
A69: 67 | B69: 石玉成 | C69: 202311110182 | D69: 男 | E69: 马场坪派出所勤务辅警13 | F69: 79.84 | G69: 70.80 | H69: 75.32 | I69: 4 | J69: 合格 | K69: 是
A70: 68 | B70: 杨斌 | C70: 202311110177 | D70: 男 | E70: 凤山派出所勤务辅警14 | F70: 72.56 | G70: 74.60 | H70: 73.58 | I70: 1 | J70: 合格 | K70: 是
A71: 69 | B71: 杨朝益 | C71: 202311110185 | D71: 男 | E71: 陆坪派出所勤务辅警16 | F71: 82.41 | G71: 73.20 | H71: =F71*0.5+G71*0.5 -> 77.81 | I71: 1 | J71: 合格 | K71: 是
A72: 70 | B72: 蒙开俊 | C72: 202311110146 | D72: 男 | E72: 仙桥派出所勤务辅警17 | F72: 67.70 | G72: 77.40 | H72: =F72*0.5+G72*0.5 -> 72.55 | I72: 1 | J72: 合格 | K72: 是
A73: 71 | B73: 金玻 | C73: 202311110191 | D73: 男 | E73: 牛场派出所勤务辅警18 | F73: 86.08 | G73: 81.80 | H73: =F73*0.5+G73*0.5 -> 83.94 | I73: 1 | J73: 合格 | K73: 是
A74: 72 | B74: 王相 | C74: 202311110188 | D74: 男 | E74: 牛场派出所勤务辅警18 | F74: 83.18 | G74: 78.20 | H74: =F74*0.5+G74*0.5 -> 80.69 | I74: 2 | J74: 合格 | K74: 是
A75: 73 | B75: 段德江 | C75: 202311110189 | D75: 男 | E75: 牛场派出所勤务辅警18 | F75: 64.07 | G75: 69.60 | H75: =F75*0.5+G75*0.5 -> 66.84 | I75: 3 | J75: 合格 | K75: 是
A76: 74 | B76: 杨正富 | C76: 202311110190 | D76: 男 | E76: 牛场派出所勤务辅警18 | F76: 65.29 | G76: 缺考 | H76: —— | I76: —— | J76: 缺考 | K76: 否
A77: 75 | B77: 刘清澈 | C77: 202311110193 | D77: 男 | E77: 牛场派出所勤务辅警19 | F77: 71.63 | G77: 78.40 | H77: =F77*0.5+G77*0.5 -> 75.02 | I77: 1 | J77: 合格 | K77: 是
A78: 76 | B78: 冯帮权 | C78: 202311110192 | D78: 男 | E78: 牛场派出所勤务辅警19 | F78: 71.51 | G78: 71.20 | H78: =F78*0.5+G78*0.5 -> 71.36 | I78: 2 | J78: 合格 | K78: 是
A79: 77 | B79: 熊星杰 | C79: 202311110199 | D79: 男 | E79: 牛场派出所勤务辅警19 | F79: 67.84 | G79: 72.20 | H79: =F79*0.5+G79*0.5 -> 70.02 | I79: 3 | J79: 合格 | K79: 是
A80: 78 | B80: 胡瑞 | C80: 202311110194 | D80: 男 | E80: 牛场派出所勤务辅警19 | F80: 75.93 | G80: 缺考 | H80: —— | I80: —— | J80: 缺考 | K80: 否
A81: 79 | B81: 王子帅 | C81: 202311110196 | D81: 男 | E81: 道坪派出所勤务辅警23 | F81: 73.17 | G81: 73.70 | H81: =F81*0.5+G81*0.5 -> 73.44 | I81: 1 | J81: 合格 | K81: 是
A82: 80 | B82: 李帮龙 | C82: 202311110195 | D82: 男 | E82: 道坪派出所勤务辅警23 | F82: 64.64 | G82: 72.00 | H82: =F82*0.5+G82*0.5 -> 68.32 | I82: 2 | J82: 合格 | K82: 是
